Cogmind - Beta 13 *** ADVENTURER MODE // 2024.05.16 @ 13:46:02 Player: OrcaCora Result: Destroyed by U4-FWP(R) with Subdweller Beam Cannon Performance ------------- Evolutions (0) 0 Regions Visited (3) 600 Robots Destroyed (52) 260 Value Destroyed (645) 645 Prototype IDs (6) 120 Alien Tech Used (0) 0 Bonus (0) 0 TOTAL SCORE: 1625 Bonus ------- None Cogmind --------- Core Integrity 0/250 Matter 234/300 Energy 123/125 System Corruption 0% Temperature Cool (9) Movement Rolling (110) Ox2 Location -10/Subcaves Parts ------- > --- POWER (1) -------- Light Ion Engine > --- PROPULSION (2) --- Wheel Wheel > --- UTILITY (2) ------ High-capacity Storage Unit > --- WEAPON (2) ------- Light Assault Rifle Light Assault Rifle > --- INVENTORY (20) --- Light Ion Engine Light Ion Engine Wheel Wheel Wheel Wheel Heat Sink Large Battery (200) High-capacity Battery (250) Medium Matter Pod (100) Medium Matter Pod (100) Large Matter Pod (150) Subdweller Optics Experimental Sensor Array Signal Interpreter Light Assault Rifle Peak State ------------ > --- POWER ------------ Light Ion Engine > --- PROPULSION ------- Wheel Wheel > --- UTILITY ---------- High-capacity Storage Unit Experimental Sensor Array > --- WEAPON ----------- Light Assault Rifle Rocket Launcher > --- INVENTORY -------- Light Ion Engine Light Ion Engine Light Ion Engine Wheel Wheel Wheel Wheel Wheel Wheel Heat Sink Large Battery High-capacity Battery Medium Matter Pod Medium Matter Pod Large Matter Pod Signal Interpreter Tractor Beam Light Assault Rifle [Rating: 17] Favorites ----------- Power Ion Engine Engine Ion Engine Propulsion Wheel Wheel Wheel Utility High-capacity Storage Unit Device Tractor Beam Storage High-capacity Storage Unit Processor Signal Interpreter Weapon Assault Rifle Ballistic Gun Assault Rifle Launcher Rocket Launcher Build | -11 -10 -10 -10 ------- Run | Yrd Mat Min Sub Slots Evolved . | . . . . Power . | . . . . Propulsion . | . . . . Utility . | . . . . Weapon . | . . . . Parts Attached 33 | 5 14 7 7 Power 5 | 1 2 1 1 Engine 5 | 1 2 1 1 Core . | . . . . Reactor . | . . . . Propulsion 10 | . 7 1 2 Treads . | . . . . Leg . | . . . . Wheel 10 | . 7 1 2 Hover . | . . . . Flight . | . . . . Utility 7 | 2 3 2 . Device 3 | 1 . 2 . Storage 3 | 1 2 . . Processor 1 | . 1 . . Hackware . | . . . . Protection . | . . . . Artifact . | . . . . Weapon 11 | 2 2 3 4 Energy Gun . | . . . . Energy Cannon . | . . . . Ballistic Gun 9 | 2 2 2 3 Ballistic Cannon . | . . . . Launcher 2 | . . 1 1 Special Weapon . | . . . . Impact Weapon . | . . . . Slashing Weapon . | . . . . Piercing Weapon . | . . . . Special Melee Weapon . | . . . . Unidentified Prototypes 1 | . . 1 . Parts Lost 9 | . 1 2 6 Power 1 | . . . 1 Propulsion 2 | . . . 2 Utility 2 | . 1 . 1 Weapon 4 | . . 2 2 Highest Loss Streak 3 | . 1 2 3 To Critical Strikes 2 | . . 2 . Average Slot Usage (%) 89 | . 82 99 83 Engine 12 | . 12 13 7 Wheel 25 | . 22 27 27 Device 6 | . 4 8 5 Storage 14 | . 14 14 14 Processor 3 | . 3 5 . Ballistic Gun 22 | . 24 19 22 Launcher 4 | . . 8 4 Naked Turns . | . . . . Heaviest Build 50 | 15 50 49 49 Greatest Support 32 | 3 32 20 20 Greatest Overweight (x) 13 | 4 13 4 2 Average Overweight (x) 2 | 3 1 2 2 Largest Inventory Capacity 20 | 8 20 20 20 Average Capacity 18 | 7 18 20 20 Most Carried 20 | 6 18 20 20 Average Carried 13 | 5 10 18 19 Final Capacity 20 | 8 20 20 20 Final Carried 20 | 6 18 20 16 Class Distribution -------------------- 70% | Mutant 29% | Scavenger-Mutant Dominant Class ---------------- Mutant | -10/Materials Scavenger-Mutant | -10/Mines Mutant | -10/Subcaves Resources | -11 -10 -10 -10 ----------- Run | Yrd Mat Min Sub Matter Collected 1577 | 256 723 475 123 Remotely 280 | 24 83 100 73 Salvage Created 1729 | 79 875 571 204 Parts 105 | 4 49 34 18 Haulers Intercepted 2 | . 2 . . Recyclers Shooed 6 | . 4 2 . Parts Field Recycled . | . . . . Retrieved Matter . | . . . . Parts Self-Destructed 14 | . . . 14 Prevented . | . . . . Kills | -11 -10 -10 -10 ------- Run | Yrd Mat Min Sub Combat Hostiles Destroyed 32 | . 10 15 7 Guns 28 | . 10 11 7 AOE 4 | . . 4 . Classes Destroyed 11 | 1 5 3 2 Worker 8 | . 7 1 . Builder 1 | . . 1 . Tunneler 1 | . . 1 . Hauler 2 | . 2 . . Recycler 9 | 1 4 4 . Turret 2 | . . . 2 Watcher 3 | . 3 . . Swarmer 19 | . 6 9 4 Grunt 4 | . 4 . . Subdweller 3 | . . . 3 Assembled 6 | . . 6 . Best Kill Streak 6 | 1 4 4 6 Combat Bots Only 4 | . 4 4 4 Max Kills in Single Turn 2 | 1 1 2 1 Gunslinging . | . . . . Exploded 2 | . . 2 . Melee . | . . . . Uniques/NPCs Destroyed . | . . . . Combat | -11 -10 -10 -10 -------- Run | Yrd Mat Min Sub Hostile Shots Fired 178 | . 63 31 84 Missed 63 | . 24 6 33 Damage Taken 1010 | . 283 202 525 Core 253 | . 26 81 146 Absorbed by Shields . | . . . . Ignored by Resistances 304 | . 93 62 149 Core Remaining (%) 100 | 100 . . . Volleys Fired 152 | 1 73 41 37 Largest 2 | 2 2 2 2 Hottest 53 | 40 40 53 53 Shots Fired 291 | 2 146 69 74 Gun 279 | 2 146 64 67 Cannon . | . . . . Launcher 12 | . . 5 7 Special . | . . . . Kinetic 279 | 2 146 64 67 Thermal . | . . . . Explosive 12 | . . 5 7 Electromagnetic . | . . . . Robot Hit Streak 37 | 1 23 37 23 Robot Miss Streak 5 | . 5 2 1 Penetration Max . | . . . . Secondary Targets 5 | . 1 1 3 Max Gunslinging Chain 1 | . 1 1 1 Shots Hit Robots 218 | 1 104 53 60 Core Hits 93 | 1 36 30 26 Critical Kills . | . . . . Critical Parts Destroyed . | . . . . Critical Strikes . | . . . . Melee Attacks . | . . . . Impact . | . . . . Slashing . | . . . . Piercing . | . . . . Sneak Attacks . | . . . . Combat Hostiles . | . . . . Follow-up Attacks . | . . . . Damage Inflicted 2644 | 15 1245 789 595 Guns 2206 | 15 1245 566 380 Cannons . | . . . . Explosions 438 | . . 223 215 Melee . | . . . . Ramming . | . . . . Kinetic 2206 | 15 1245 566 380 Thermal . | . . . . Explosive 438 | . . 223 215 Electromagnetic . | . . . . Impact . | . . . . Slashing . | . . . . Piercing . | . . . . Highest Corruption . | . . . . Average Corruption . | . . . . Corruption Purged . | . . . . Corruption Blocked . | . . . . Overload Shots . | . . . . Overflow Damage 9 | . . 9 . Projectiles . | . . . . Explosions 9 | . . 9 . Melee . | . . . . Knockbacks . | . . . . Impact . | . . . . Kinetic . | . . . . Secondary . | . . . . Self-Inflicted Damage 10 | . . . 10 Shots 1 | . . . 1 Rammed . | . . . . Targets Rammed . | . . . . Kicked . | . . . . Crushed . | . . . . Highest Temperature 12 | . 9 12 5 Average Temperature 6 | . 4 9 5 Received Heat Transfer 294 | . 111 . 183 Siege Activations . | . . . . Robots Corrupted . | . . . . Combat Hostiles . | . . . . Parts Fried . | . . . . Impact Corruptions . | . . . . Robots Melted . | . . . . Combat Hostiles . | . . . . Parts Melted . | . . . . Heat Transferred . | . . . . Parts Sabotaged . | . . . . Parts Stolen . | . . . . Parts Stripped . | . . . . Power Chain Reactions . | . . . . Alert | -11 -10 -10 -10 ------- Run | Yrd Mat Min Sub Peak Influence 230 | 5 230 201 . Initial 11 | . 2 11 . Average 50 | 4 54 59 . Maximum Alert Level 1 | . 1 1 . Low Security (%) 93 | 100 94 90 . Level 1 6 | . 5 9 . Level 2 . | . . . . Level 3 . | . . . . Level 4 . | . . . . Level 5 . | . . . . High Security . | . . . . Max Security . | . . . . Squads Dispatched . | . . . . Investigation . | . . . . Extermination . | . . . . Reinforcement . | . . . . Assault . | . . . . Garrison . | . . . . Intercept . | . . . . Searches Triggered . | . . . . Construction Impeded . | . . . . Haulers Reinforced . | . . . . Active Scanning Responses . | . . . . Cargo Convoy Interrupts . | . . . . Stealth | -11 -10 -10 -10 --------- Run | Yrd Mat Min Sub Distress Signals . | . . . . Communications Jammed . | . . . . Distress Signals . | . . . . Times Spotted 60 | . 15 15 30 Peak Tracking Total 6 | . 4 3 6 Tactical Retreats 3 | . . 1 2 Traps | -11 -10 -10 -10 ------- Run | Yrd Mat Min Sub Traps Triggered 4 | . 3 . 1 Indirectly . | . . . . Trap Hack Attempts . | . . . . Triggered . | . . . . Disarmed . | . . . . Reprogrammed . | . . . . Reused . | . . . . Traps Extracted . | . . . . Installed . | . . . . Triggered . | . . . . Machines | -11 -10 -10 -10 ---------- Run | Yrd Mat Min Sub Machines Disabled 2 | . . . 2 Max in Single Turn 2 | . . . 2 Machines Repaired . | . . . . Machines Dismantled . | . . . . Machines Sabotaged . | . . . . Overloaded Fab Kills . | . . . . Hacking | -11 -10 -10 -10 --------- Run | Yrd Mat Min Sub Machines Accessed 9 | . 9 . . Terminals 8 | . 8 . . Fabricators . | . . . . Repair Stations . | . . . . Recycling Units 1 | . 1 . . Scanalyzers . | . . . . Garrison Access . | . . . . Total Hacks 21 | . 21 . . Successful 12 | . 12 . . Failed 9 | . 9 . . Catastrophic . | . . . . Database Lockouts . | . . . . Manual . | . . . . Terminals 20 | . 20 . . Fabricators . | . . . . Repair Stations . | . . . . Recycling Units 1 | . 1 . . Scanalyzers . | . . . . Garrison Access . | . . . . Terminal Hacks 11 | . 11 . . Prototype ID Bank 5 | . 5 . . Branch Access Points 1 | . 1 . . Machine Index 1 | . 1 . . Locate Traps 4 | . 4 . . Fabricator Hacks . | . . . . Repair Station Hacks . | . . . . Recycling Unit Hacks 1 | . 1 . . Retrieve Components 1 | . 1 . . Scanalyzer . | . . . . Garrison Access Hacks . | . . . . Unauthorized Hacks . | . . . . Terminals . | . . . . Fabricators . | . . . . Repair Stations . | . . . . Recycling Units . | . . . . Scanalyzers . | . . . . Garrison Access . | . . . . Data Cores Recovered . | . . . . Used . | . . . . Hacking Detections 6 | . 6 . . Full Trace Events 1 | . 1 . . Feedback Events . | . . . . Feedback Blocked . | . . . . Robot Schematics Acquired . | . . . . Robots Built . | . . . . Authchips . | . . . . Time . | . . . . Total Robot Build Rating . | . . . . Part Schematics Acquired . | . . . . Parts Built . | . . . . Authchips . | . . . . Time . | . . . . Total Part Build Rating . | . . . . Parts Repaired . | . . . . Time . | . . . . Parts Recycled . | . . . . Recycled Matter . | . . . . Retrieved Matter . | . . . . Retrieved Components 1 | . 1 . . Parts Scanalyzed . | . . . . Part Schematics Acquired . | . . . . Parts Damaged . | . . . . Bothacking | -11 -10 -10 -10 ------------ Run | Yrd Mat Min Sub Used RIF Installer . | . . . . Robots Hacked . | . . . . Non-combat . | . . . . Combat . | . . . . Robot Hacks Applied . | . . . . Relay Couplers Released . | . . . . Fabnet Peak Effective % . | . . . . Robots Rewired . | . . . . Allies Hacked . | . . . . Hacks Repelled . | . . . . Allies | -11 -10 -10 -10 -------- Run | Yrd Mat Min Sub Total Allies . | . . . . Largest Group . | . . . . Highest-Rated Group . | . . . . Highest-Rated Ally . | . . . . Total Orders . | . . . . Ally Attacks . | . . . . Total Damage . | . . . . Kills . | . . . . Allies Corrupted . | . . . . Allies Melted . | . . . . Intel | -11 -10 -10 -10 ------- Run | Yrd Mat Min Sub Robot Analysis Total . | . . . . Derelict Logs Recovered 2 | . . 1 1 Drone Launches . | . . . . Drone Recoveries . | . . . . Exploration | -11 -10 -10 -10 ------------- Run | Yrd Mat Min Sub Turns Passed 3657 | 385 1563 1357 352 Spaces Moved 2520 | 151 1031 1115 223 Core 212 | 151 61 . . Treads . | . . . . Legs . | . . . . Wheels 2308 | . 970 1115 223 Hover . | . . . . Flight . | . . . . Fastest Speed 50 | 50 100 110 110 Average Speed 124 | 243 126 110 110 Slowest Speed 700 | 250 700 140 110 Overloaded Moves . | . . . . Propulsion Burnouts . | . . . . Robots Hopped . | . . . . Cave-ins Triggered . | . . . . Exploration Rate (%) 57 | 12 95 101 22 Regions Visited 3 Branch Regions 2 Pre-discovered Areas 2 | . . 1 1 Known Exits Taken 1 | . 1 . . Unknown Exits Taken 2 | 1 . 1 . Scrap Searched 1 | . . 1 . Spaces Dug . | . . . . Terrain Destroyed 84 | . . 46 38 Melee . | . . . . Projectile . | . . . . AOE 84 | . . 46 38 Terrain Rammed . | . . . . Walls Destroyed . | . . . . Machines Disabled . | . . . . Actions | -11 -10 -10 -10 --------- Run | Yrd Mat Min Sub Total 2758 | 167 1142 1181 268 Wait . | . . . . Move 2517 | 150 1030 1114 223 Hop . | . . . . Pick Up 45 | 11 22 11 1 Fast Attach 3 | . 2 1 . Attach 22 | 5 8 4 5 Detach 1 | . . 1 . Swap 8 | . 4 2 2 Drop 10 | . 3 7 . Fire 152 | 1 73 41 37 Melee . | . . . . Ram . | . . . . Kick . | . . . . Crush . | . . . . Escape Stasis . | . . . . Rewire . | . . . . Trap . | . . . . Miscellaneous . | . . . . Route ------- -11/Scrapyard -10/Materials (discovered 5 exits: *Mat x3 / *Min x2) -10/Mines (discovered 3 exits: *Mat x2 / [*Sub]) -10/Subcaves (discovered 1 exit: [*Rec]) History --------- Turn | Location | Event 15 | -11/Scrapyard | Discovered new exit (range 15) 386 | -11/Scrapyard | Entered Materials 387 | -10/Materials | Build established: Mutant 495 | -10/Materials | Identified exit to Mines 669 | -10/Materials | Discovered new exit (range 5) 1001 | -10/Materials | Discovered new exit (range 10) 1170 | -10/Materials | Discovered new exit (range 16) 1757 | -10/Materials | Identified exit to Materials 1949 | -10/Materials | Entered Mines 1980 | -10/Mines | Learned location of Zion (-7) 2258 | -10/Mines | Discovered exit to Materials (range 3) 2343 | -10/Mines | Received a Rocket Launcher from a helpful Derelict 2366 | -10/Mines | Discovered exit to Materials (range 9) 2431 | -10/Mines | Assembled infested the area 2436 | -10/Mines | Assisted by a Guerilla fighting off Assembled 2481 | -10/Mines | Found a damaged Exp. Sensor Array with a note attached 2483 | -10/Mines | Found Prototype Device 2484 | -10/Mines | Identified Exp. Sensor Array 2774 | -10/Mines | Build established: Scavenger-Mutant 3295 | -10/Mines | Discovered new exit (range 10) 3306 | -10/Mines | Entered Subcaves 3368 | -10/Subcaves | A swath of the cavern ceiling suddenly collapsed 3421 | -10/Subcaves | Discovered new exit (range 14) 3424 | -10/Subcaves | Core integrity fell below 50% 3477 | -10/Subcaves | Lost 3 parts (1p1u1w) 3625 | -10/Subcaves | Ambushed by angry Subdweller bent on revenge 3650 | -10/Subcaves | Lost 3 parts (2n1w) 3655 | -10/Subcaves | Core integrity fell below 20% 3658 | -10/Subcaves | Destroyed by U4-FWP(R) with Subdweller Beam Cannon Last Messages --------------- QC-ASY(u) builds Twisted Machinery. Wheel destroyed. QC-ASY(u) builds Twisted Machinery. G0-YI6(R) destroyed. Lgt. Assault Rifle destroyed. Subatomizers dissect the Sub. Machine Gun. 9O-46Y(R) affixes Scrap Shield Fragment to Scrap Shield. QC-ASY(u) cries out in pain. QC-ASY(u) destroyed. U4-FWP(R) angrily emerges from the Twisted Machinery. U4-FWP(R): "LEAVESUB!" 9O-46Y(R) destroyed. Switching to secondary target: U4-FWP(R). Subatomizers dissect the Sub. Machine Gun. EB-G94(R) emerges from concealment. Subatomizers dissect the Sub. Machine Gun. EB-G94(R) destroyed. Subatomizers dissect the Sub. Machine Gun. Map ----- +----------------------------------------------------+ | ??????????????????## ##??## ##?????????? | | ?????????????????## #### ###??????????? | | ?????????????????# ## ##????????????? | | ????????????????## # #?????????????? | | ????????????????# ### #?????????????? | | ????????????????# #### ##?????????????? | | ????????????????### ### ###??????????????? | | ??????????????????## ##????????????????? | | ???????????????????# ##### #????????? | | ???????????????????## #????????? | | ????????????????????## ## #???????? | | ??????????????????#### # #?? #???????? | | ?????????????????## """ ## ##???????? | | ?????????????????# """"###"" #????????? | | ???????????????###" ""## ? ##????????? | | ??????????????## " """"""""" ? #?????????? | | ??????????????# " """ " ????????????? | | ??????????????# "" R="### ## ???????????? | | ??????????????# """"" !% #?# ##?## ??????????? | | ????????????? """ "" %##?###???? ??????????? | | ???????????? """" " ;##???????? ??????????? | | ??????????????"## #???????? ???????????? | | ????????????????# # #??????????????????????? | | ????????????????## ## ###### #???????????????? | | ?????????????????# ?# ; #????????????????? | | ?????????????????# ?## &@ #### #???????????????? | | ????????????????? ??#&[! #?????????????????????? | | ???????????????? ???#%%*#< ????????????????????? | | ???????????????## *#&&#<$$???????????????????? | | ????????????????# #;[##<<#??????????????????? | | ????????????????# ### #?##??????????????????? | | ?????????????? # ??# ??????????????????? | | ???????????? ??##### #????????????????? | | ??????????? ????????? ##????????????????? | | ????????????? ? ?????????? #????????????????? | | ???????????? ? ???????????#????????????????? | | ????????????? ?? #?????????????????????????????? | | ????????????? ?? #??????????????????????????????? | | ?????????????????????????????????????????????????? | | ?????????????????????????????????????????????????? | | ?????????????????????????????????????????????????? | | ?????????????????????????????????????????????????? | | ?????????????????????????????????????????????????? | | ?????????????????????????????????????????????????? | | ?????????????????????????????????????????????????? | | ?????????????????????????????????????????????????? | | ?????????????????????????????????????????????????? | | ?????????????????????????????????????????????????? | | ?????????????????????????????????????????????????? | | ?????????????????????????????????????????????????? | +----------------------------------------------------+ Best States ------------- Heat Dissipation 25 Energy Generation 10 Energy Capacity 250 Matter Stores 300 Matter Capacity 300 Sight Range 16 Terrain Scan Density 10 Resistance: KI 20 Resistance: TH 20 Resistance: EX 20 Resistance: EM 20 Resistance: I 20 Resistance: S 20 Resistance: P 20 Evasion (%) 40 Offensive Hacking 10 Item Schematics ----------------- None Robot Schematics ------------------ None Fabricated ------------ Nothing Alien Tech Used ----------------- None Achievements -------------- None Challenges ------------ None Game ------ Seed RecoilRecoilDrive Manual? 0 Play Time 00:31:01 Cumulative 9.8 hours Start 2024.05.16 @ 13:11:03 End 2024.05.16 @ 13:46:02 Sessions 1 Manual Loads 0 Difficulty Adventurer Special Mode None Game No. 5 Rogue 0 Adventurer 5 Explorer 0 Win Type - Total 0 Types 0/0/0/0/0/0/0/0/0 Lore% 5 Gallery% 11 Achievement% 14 Wizard Run 0 Options --------- Layout 1 ASCII 0 Keyboard 0 Movement Mouse Keybinds 0 Fullscreen 1 Font 24/Smallcaps Map View 50x35 Zoom Use 0% Tactical HUD 0 Map Filters NONE Filters NONE Steam 1 RUN: 4023b564-3814-4a79-a34c-3957899ef542